[Event "45th FIDE Olympiad 2024"]
[Site "Budapest"]
[Date "2024.09.16"]
[Round "6.140"]
[White "Barria Santos, Jose Guilherme"]
[Black "Kabilov, Amin"]
[Result "0-1"]
[ECO "E90"]
[WhiteElo "2411"]
[BlackElo "2212"]
[Annotator "TA"]
[PlyCount "104"]
[EventDate "2024.09.05"]
[EventType "team-tourn"]
[EventCountry "HUN"]
[SourceTitle "playchess.com"]
[Source "ChessBase"]
[SourceQuality "1"]
[WhiteTeam "Portugal"]
[BlackTeam "Tajikistan"]
[WhiteTeamCountry "POR"]
[BlackTeamCountry "TJK"]
[TimeControl "40/5400+30:1800+30"]

{[%evp 14,104,49,34,90,91,100,96,96,91,105,101,98,70,85,62,95,108,80,100,101,102,102,95,90,96,111,83,108,118,114,124,115,127,119,47,43,49,45,18,21,39,30,-165,-179,-152,-156,-143,-156,-135,-154,-145,0,-412,-391,-410,-408,-390,-385,-460,-370,-355,-330,-264,0,0,0,0,0,0,0,0,0,0,28,-117,0,0,0,-373,-387,-298,-122,-143,0,0,0,-191,-184,-1361,-1352,-1122,-312]} 1. d4 Nf6 2. c4 g6 3. Nc3 Bg7 4. e4 O-O 5. Nf3 d6 6. h3 c5 7. d5 e6 8. Bd3 e5 (8... exd5 $14 9. cxd5 Re8) 9. Bg5 h6 10. Be3 Nh5 {White is better.} 11. Qd2 Kh7 12. g3 Qe7 13. O-O-O a6 14. Nh2 Re8 15. Be2 b5 16. Bxh5 gxh5 17. Qe2 (17. cxb5 axb5 18. Nxb5 Rxa2 $17 (18... Bxh3 19. Qe2 $16)) 17... Nd7 {[%cal Bb8d7,Bd7b6,Bb6c4][%mdl 32]} 18. Qxh5 (18. cxb5 axb5 19. Qxb5 f5 $15) 18... Nb6 19. Ng4 Qf8 20. Kb1 (20. cxb5 $6 f5 $11) 20... Bd7 {[#]} 21. Nxh6 {[%mdl 512]} Bxh6 22. g4 $1 {[%cal Bg3g4,Bg4g5][%mdl 32]} Nxc4 (22... bxc4 $2 23. g5 f5 24. g6+ (24. gxh6 f4 $18) (24. Qxh6+ Qxh6 25. gxh6 f4 $11) 24... Kg8 25. Bxh6 $18) 23. Bc1 f6 24. h4 (24. Rhg1 $16) 24... Qg7 25. g5 {[%mdl 1024] White has compensation.} Qg6 26. Qf3 Rg8 {[%cal Of6f5]} 27. Rdg1 {[%cal Ob2b3] Black must now prevent b3!} (27. gxh6 Bg4 28. Qd3 Bxd1 29. Nxd1 Qh5 $17) 27... Raf8 {[%cal Rf6g5] Strongly threatening ...fxg5.} (27... fxg5 28. hxg5 Raf8 29. Qd1 $18 (29. Rxh6+ Qxh6 30. Qd1 Qh4 $17)) 28. h5 $2 (28. Qe2 $11) 28... Qg7 $19 (28... fxg5 29. hxg6+ Kg7 30. Qh5 Rh8 31. Bxg5 Kg8 32. Bxh6 Rf6 33. Qg5) 29. gxh6 Qxg1 30. Rxg1 Rxg1 31. Kc2 {Inhibits Nd2.} Bg4 32. Qd3 Rg2 {Chess con chili. Black has more active pieces.} (32... Bxh5 33. b3 Nb6 34. Qh3 $16) (32... f5 $1 $17 {[%cal Rf5e4] aiming for ...fxe4.} 33. b3 Nb6) 33. b3 $2 {[%mdl 8192]} (33. Kb1 $11 {and White has nothing to worry.}) 33... Rxf2+ 34. Kb1 Rf3 35. Qc2 Ne3 36. Qh2 Nf1 (36... Kxh6 $2 37. Nd1 Rg8 38. Nxe3 $18 (38. Bxe3+ Kh7 $18)) 37. Qh4 Rg8 {[%cal Of1g3]} 38. Ne2 {[#]} Bd7 $2 (38... Bh3 $1 $19 39. Nf4 exf4 40. Qxf6 Nd2+ 41. Bxd2 Rg1+ 42. Kb2 Rf2 43. Qe7+ Kxh6 44. Qxd6+ Kxh5 45. Qe5+ (45. Qxc5 $2 Rxd2+ 46. Ka3 Rgd1 $19) 45... Kh4) 39. Nf4 $11 {[%cal Oh4f6] Repels Rg2} Rg5 (39... Rxf4 40. Bxf4 exf4 41. Qxf6 (41. Qxf4 Rg1 $16)) 40. Ne6 Rg8 41. Nf4 {[%cal Oh4f6]} Rg5 $36 {[%mdl 2048] Black fights for an advantage.} (41... Rxf4 42. Bxf4 exf4 43. Qxf6 (43. Qxf4 Rg1 $16)) 42. Ne6 Rg8 43. Qh1 Rf2 44. Ng7 {[#]} (44. Nf8+ $11 Kh8 (44... Rxf8 $2 45. Qg1 $18) 45. Ng6+ Kh7 46. Nf8+ (46. Qh4 Rf3 $14) 46... Kh8 (46... Rxf8 $2 47. Qg1 $18) 47. Nxd7) 44... Nh2 (44... Ng3 $1 $17 {[%cal Rg3h1]} 45. Qg1 Rf3 (45... Nxe4 $2 {loses.} 46. Qg6+ Kh8 47. Qxe4 $18)) 45. Qe1 Ng4 {[%cal Ob5b4] Threatens to win with ...b4!} 46. Ne6 $2 {[%mdl 8192]} (46. Qa5 $11 Nxh6 47. Ne6) 46... b4 $1 $19 47. a4 {Wards off Bb5} a5 (47... bxa3 $19 {and Black stays clearly on top. ...Bb5 would now be deadly.} 48. Qc3 a2+ (48... Nxh6 $2 49. Qe1 $19) 49. Ka1 Kh8 (49... Nxh6 $2 50. Qe1 $19)) 48. Ka1 Be8 ({Better is} 48... Rh2 $17) 49. Ng7 $1 $11 Bd7 $2 (49... Rh2 $11) 50. Ne6 $1 $19 Bc8 {[%cal Oc8a6] Hoping for ...Ba6!} 51. Kb1 $2 (51. Qg1) 51... Ba6 52. Qg1 Bd3+ {Weighted Error Value: White=0.43/Black=0.30.  Loses game:     	White=3     	---        Missed win:     	---       	Black=2      Mistake:       	White=3     	Black=4      Inaccurate:     	White=1     	Black=1      OK:         	White=20    	Black=16     Best:        	White=1     	Black=6      Strong:       	White=3     	Black=1} (52... Nxh6 $2 {perishes.} 53. Qxf2 Bd3+ 54. Kb2 $18) 0-1

[Event "45th FIDE Olympiad 2024"]
[Site "Budapest"]
[Date "2024.09.16"]
[Round "6.141"]
[White "Kantor, Gergely"]
[Black "Laohawirapap, Prin"]
[Result "1-0"]
[ECO "E04"]
[WhiteElo "2537"]
[BlackElo "2380"]
[Annotator "TA"]
[PlyCount "77"]
[EventDate "2024.09.05"]
[EventType "team-tourn"]
[EventCountry "HUN"]
[SourceTitle "playchess.com"]
[Source "ChessBase"]
[SourceQuality "1"]
[WhiteTeam "Hungary C"]
[BlackTeam "Thailand"]
[BlackTeamCountry "THA"]
[TimeControl "40/5400+30:1800+30"]

{[%evp 24,77,-30,-22,0,-34,0,0,0,0,0,0,8,7,143,136,101,49,60,52,37,50,104,70,76,85,77,77,147,108,148,126,291,294,318,188,187,170,981,973,1159,677,1486,1455,1405,1309,847,759,29977,29978,29988,29969,29979,29980,29985,29984]} 1. d4 Nf6 2. c4 e6 3. Nf3 d5 4. Nc3 c6 5. g3 dxc4 6. Ne5 b5 7. Bg2 Nd5 8. O-O Bb7 9. a4 a6 10. e4 Nxc3 11. bxc3 Nd7 12. f4 Be7 13. Ng4 O-O 14. f5 Kh8 15. e5 {[%cal Of5f6]} exf5 {The position is equal.} 16. Rxf5 f6 17. Qc2 {Black must now prevent e6.} g6 (17... fxe5 $2 18. Rh5 h6 19. Bxh6 $18 (19. dxe5 Qe8 $11)) 18. Rf1 {And now Bh6 would win.} f5 {[#]} (18... fxe5 $11 19. Be3 Rxf1+ 20. Rxf1 Qg8) 19. Nh6 $1 $16 {Strongly threatening g4.} Kg7 20. e6 ({Much less strong is} 20. g4 Bg5 $11) ({Better is} 20. Qe2 $16) 20... Nf6 $14 21. Nf7 {The board is on fire.} Rxf7 22. exf7 Kxf7 (22... Qd7 $14) 23. Bg5 Qd7 $1 24. Rae1 $36 {[%cal Og3g4][%mdl 3072] White has strong compensation. White has strong initiative.} Re8 25. Qd2 {White has more active pieces.} a5 ({Black should play} 25... h5) 26. h3 {[%cal Og3g4]} b4 27. g4 $1 {aiming for gxf5.} bxc3 $2 {Loses the game.} (27... Bc8 $16) 28. Qxc3 $18 Nd5 29. Qc1 (29. Qxa5 $2 {is the wrong capture.} Bxg5 30. gxf5 gxf5 31. Rxe8 Kxe8 $19) (29. Bxd5+ $142 cxd5 30. Bxe7 Rxe7 31. gxf5 (31. Qxa5 Qd6 $18) 31... gxf5 32. Qxa5) 29... Bxg5 30. Qxg5 Ne3 (30... Rxe1 31. Rxe1 Nf6) 31. Rxe3 {[%cal Rg4f5]} Qxd4 32. Rff3 c5 {[#]} 33. Rxf5+ {[%mdl 512]} gxf5 34. Qh5+ Kg7 35. Qxe8 {Intending Qe7+ and mate.} Be4 36. Qe7+ {White mates.} Kh6 37. Qh4+ Kg7 38. Qg5+ Kh8 39. gxf5 {Weighted Error Value: White=0.44/Black=0.45.  Loses game:     	---       	Black=1      Mistake:       	White=2     	Black=4      Inaccurate:     	White=2     	Black=2      OK:         	White=4     	Black=5      Best:        	White=1     	Black=1      Strong:       	White=2     	Black=1} 1-0

[Event "45th FIDE Olympiad 2024"]
[Site "Budapest"]
[Date "2024.09.16"]
[Round "6.142"]
[White "Kulpruethanon, Thanadon"]
[Black "Krstulovic, Alex"]
[Result "0-1"]
[ECO "D85"]
[WhiteElo "2286"]
[BlackElo "2452"]
[Annotator "TA"]
[PlyCount "88"]
[EventDate "2024.09.05"]
[EventType "team-tourn"]
[EventCountry "HUN"]
[SourceTitle "playchess.com"]
[Source "ChessBase"]
[SourceQuality "1"]
[WhiteTeam "Thailand"]
[BlackTeam "Hungary C"]
[WhiteTeamCountry "THA"]
[TimeControl "40/5400+30:1800+30"]

{[%evp 18,88,12,0,22,-23,-35,-32,-19,-23,-26,-29,-38,-79,-49,-58,-73,-54,-59,-66,-60,-105,-105,-116,-116,-128,-134,-150,-118,-118,-118,-115,-117,-114,-117,-164,-168,-165,-168,-152,-153,-159,-161,-166,-159,-201,-184,-214,-187,-228,-228,-337,-338,-363,-365,-355,-332,-347,-343,-469,-379,-590,-579,-1338,-1108,-1319,-1077,-1756,-1685,-2108,-1758,-1722,-1589]} 1. d4 Nf6 2. c4 g6 3. Nc3 d5 4. cxd5 Nxd5 5. e4 Nxc3 6. bxc3 Bg7 7. Be3 c5 8. Rc1 Qa5 9. Qd2 O-O 10. d5 Nd7 11. c4 Qxd2+ 12. Kxd2 b6 {Black is slightly better.} 13. Ne2 e6 14. Nc3 Ne5 15. h3 Ba6 16. Nb5 Bxb5 17. cxb5 exd5 18. exd5 Rad8 19. f4 {[#]} Nd7 (19... Rxd5+ 20. Kc2 Nd7 21. Bc4 $15) 20. Bc4 Nf6 21. Kc2 Nxd5 22. Bd2 Nxf4 23. Bxf4 {Strongly threatening Rcd1.} Rd4 {[%csl LRc4,LRf4]} 24. Kb3 {And now Rhf1 would win.} Rxf4 25. Rhf1 Rd4 26. Rce1 (26. Rcd1 $17) 26... Rd2 $19 {...Rb2+ is the strong threat.} 27. Re2 Rxe2 28. Bxe2 {[%mdl 4096] Endgame. KRB-KRB} Re8 29. Bf3 Bd4 (29... Re3+ $2 30. Kc2) 30. Kc4 Kg7 31. Kd5 f5 32. Rd1 Kf6 33. Kc6 Re3 34. Kb7 (34. Bd5 {might work better.}) 34... Ke5 35. Rc1 Ra3 36. Rc2 Be3 37. Be2 Kd4 38. Bc4 g5 39. Bb3 (39. Bg8 $142) 39... Kd3 {[%cal Oa3b3] White must now prevent ...Rxb3! Black is clearly winning.} 40. Rc4 h5 41. Kc6 g4 42. Kd5 {[#]} Rxb3 $1 43. axb3 (43. hxg4 Rb1) 43... gxh3 44. gxh3 f4 {Weighted Error Value: White=0.39/Black=0.05 (flawless) .  Mistake:       	White=3     	---        Inaccurate:     	White=5     	---        OK:         	White=9     	Black=21     Best:        	White=1     	Black=2} 0-1

[Event "45th FIDE Olympiad 2024"]
[Site "Budapest"]
[Date "2024.09.16"]
[Round "6.143"]
[White "Juhasz, Agoston"]
[Black "Bodemar, Jonathan"]
[Result "1-0"]
[ECO "C11"]
[WhiteElo "2427"]
[BlackElo "2195"]
[Annotator "TA"]
[PlyCount "81"]
[EventDate "2024.09.05"]
[EventType "team-tourn"]
[EventCountry "HUN"]
[SourceTitle "playchess.com"]
[Source "ChessBase"]
[SourceQuality "1"]
[WhiteTeam "Hungary C"]
[BlackTeam "Thailand"]
[BlackTeamCountry "THA"]
[TimeControl "40/5400+30:1800+30"]

{[%evp 13,81,0,0,0,41,39,44,43,39,0,39,30,89,77,129,75,85,82,113,120,161,173,147,86,97,84,95,78,71,33,82,58,83,58,65,61,89,96,175,89,97,97,105,112,267,229,1025,1021,955,1011,1019,1014,1020,1035,1072,1072,1025,1025,936,877,1359,1353,1353,1308,1366,1333,2031,1833,1756,1783]} 1. e4 e6 2. d4 d5 3. Nc3 Nf6 4. e5 Nfd7 5. Nce2 c5 6. c3 Nc6 7. Nf3 Be7 8. a3 a5 {[%cal Ba7a5,Ba5a4][%mdl 32]} 9. Nf4 Qb6 10. h4 {White is slightly better.} a4 11. Rh3 g6 12. Be2 Ra7 (12... cxd4 $11 {remains equal.} 13. cxd4 Qb3) 13. Kf1 Na5 ({Better is} 13... Qb3) 14. Bd3 (14. Qxa4 $2 Nb3 15. dxc5 Bxc5 $19 (15... Rxa4 $2 16. cxb6 Nxa1 17. Nd3 $19) (15... Nxa1 16. Qxd7+ Bxd7 17. cxb6 $16)) (14. h5 $142 g5 15. Ng6 hxg6 16. hxg6) 14... Nb3 $16 15. Rb1 Nb8 16. Be3 Bd7 17. Kg1 Nc6 18. Ne2 (18. dxc5 $142 Qc7 19. Bc2) 18... h6 19. Rg3 Nca5 20. Nh2 {[%cal Bf3h2,Bh2g4,Bg4f6][%mdl 32]} Bb5 21. Ng4 h5 {[#]} (21... Bxd3 $14 {deserves consideration.} 22. Qxd3 Qa6) 22. Nf6+ $1 Bxf6 23. exf6 {[%cal Od3g6] Strongly threatening Bxg6!} Bxd3 24. Qxd3 {[%cal Og3g6] Hoping for Rxg6!} Qa6 25. Qc2 {[%cal Og3g6] Threatens to win with Rxg6! White is more active.} Nc4 {[#]} (25... b5 $16) 26. Nf4 (26. dxc5 $6 Kd8 $16) (26. Rxg6 $1 $18 {And now Rh6 would win.} cxd4 27. cxd4 (27. Bxd4 Ra8 $18)) 26... b5 27. dxc5 Qc6 {[%cal Oc4e3]} 28. Bd4 {[%cal Og3g6] Black must now prevent Rxg6!} e5 $2 {Loses the game.} (28... Kd8 $16) 29. Re1 Kf8 $2 (29... Kd8) 30. Bxe5 $18 {White is clearly winning.} (30. Qxg6 fxg6 31. Nxg6+ Ke8 (31... Kf7 $2 32. Nxh8+ Ke6 33. Rg6 $18) 32. Nxh8 Nxd4 (32... Qxf6 33. Rg8+ Kd7 34. c6+ Kxc6 35. Bxa7 $11) 33. Rg8+ Kd7 $19) 30... Nxe5 31. Rxe5 {[%cal Of4g6] Intending Nxg6+! and mate.} Qxf6 {[#]} 32. Rf3 $1 {[%cal Of4g6] Nxg6+! would kill now.} Kg7 {[%cal Bf8g7,Bg7f6,Bf6e6,Be6e5,Be5f4,Bf4e3,Be3d3][%mdl 32] [#]} 33. Ne6+ $1 {[%mdl 512]} fxe6 (33... Qxe6 34. Rxe6) 34. Rxf6 Kxf6 {[#]} 35. Rxe6+ $3 {[%mdl 512]} Kxe6 36. Qxg6+ Ke5 {[#]} 37. f4+ $1 {[%mdl 512]} Kxf4 38. Qf6+ Ke3 39. Qxh8 d4 40. Qe5+ Kd3 41. c6 {Weighted Error Value: White=0.17 (very precise) /Black=0.31.  Mistake:       	White=3     	Black=6      Inaccurate:     	White=2     	Black=5      OK:         	White=8     	Black=8      Best:        	White=1     	Black=1      Strong:       	White=1     	---} 1-0

[Event "45th FIDE Olympiad 2024"]
[Site "Budapest"]
[Date "2024.09.16"]
[Round "6.144"]
[White "Arunnuntapanich, Tinnakrit"]
[Black "Karacsonyi, Gellert"]
[Result "1/2-1/2"]
[ECO "E24"]
[WhiteElo "2064"]
[BlackElo "2403"]
[Annotator "TA"]
[PlyCount "90"]
[EventDate "2024.09.05"]
[EventType "team-tourn"]
[EventCountry "HUN"]
[SourceTitle "playchess.com"]
[Source "ChessBase"]
[SourceQuality "1"]
[WhiteTeam "Thailand"]
[BlackTeam "Hungary C"]
[WhiteTeamCountry "THA"]
[TimeControl "40/5400+30:1800+30"]

{[%evp 13,90,-27,-7,-33,-42,-38,-46,-59,-68,-70,-46,-72,-45,-69,-53,-53,-50,-42,-52,-50,-37,-42,-25,-41,0,0,0,0,0,0,0,0,268,0,0,-34,-42,-42,-43,-44,-34,-39,-46,-34,-33,-36,0,0,31,-37,-18,-93,-15,-8,-26,-41,-29,-24,0,0,0,0,0,0,0,0,0,0,0,0,0,0,0,0,0,0,8,8,8]} 1. d4 Nf6 2. c4 e6 3. Nc3 Bb4 4. f3 c5 5. a3 Bxc3+ 6. bxc3 Nc6 7. e4 d6 8. d5 Na5 9. Bd3 b6 10. Ne2 {Black is slightly better.} Ba6 11. Ng3 Nd7 12. f4 {[%cal Oe4e5]} Qe7 13. O-O {[%cal Oe4e5]} O-O-O 14. Rb1 g6 15. Re1 Rhe8 (15... Bxc4 16. Bxc4 Nxc4 17. Qd3 $16) (15... Nxc4 $2 16. Qa4 Bb7 17. Bxc4 $18 (17. Qxc4 h5 $18)) 16. Be3 h5 (16... Nxc4 $2 17. Qa4 Nxe3 18. Qxa6+ (18. Bxa6+ Kb8 $18) 18... Kb8 19. Rxe3 $18) 17. Nf1 exd5 (17... Nxc4 $2 18. Qa4 Bb7 19. Qxc4 $18 (19. Bxc4 Kb8 $18)) (17... Nf6 $5) 18. exd5 Qf6 {[%cal Oe8e7]} (18... Nxc4 $2 {loses.} 19. Qa4 Nb8 20. Bxc4 $18) 19. Nd2 Qxc3 20. Ne4 Rxe4 21. Bxe4 Re8 22. Bf2 Nxc4 $2 {[%mdl 8192] [#]} (22... Kc7 $11 {and Black has nothing to worry.}) 23. Rc1 $2 (23. Qa4 $1 $18 Na5 24. Bxg6) 23... Nb2 $1 $11 {Excellent horsemanship.} 24. Qc2 Qxc2 25. Bxc2 Rxe1+ 26. Rxe1 Bd3 27. Re8+ Kc7 28. Bxd3 Nxd3 $15 {[%mdl 4096] Endgame. KRB-KNN} 29. Be3 c4 30. Kf1 b5 31. Re7 (31. Ke2 $14) 31... a5 32. Ke2 ({Much worse is} 32. Bd2 b4 33. Ke2 Kd8 34. Rxf7 bxa3 35. Bxa5+ Ke8 $17) (32. f5 $11) 32... b4 (32... f5 $17 33. Rg7 b4 34. axb4 axb4) 33. axb4 $11 axb4 34. Rxf7 b3 {[#] White must now prevent ...b2.} 35. Kd2 b2 (35... Nb4 $5 36. Bd4 $8 Nxd5 $11) 36. Kc2 {aiming for Bd4. The position is equal.} c3 $1 37. Bd4 {[%cal Od4c3] Strongly threatening Bxc3!} (37. Kb1 $5 Nb4 $8 38. h4 $11) 37... Nb4+ 38. Kb1 $1 {Threatens to win with f5. The board is on fire.} Nxd5 39. f5 gxf5 40. Rxf5 N7b6 {[%cal Ob6c4] And now ...Nc4! would win.} 41. Bxc3 Nxc3+ 42. Kxb2 Nd1+ 43. Kb3 Ne3 {[%csl LRf5,LRg2]} 44. Rxh5 Nxg2 45. h4 Kc6 {Weighted Error Value: White=0.21 (precise) /Black=0.20 (precise) .  Loses game:     	---       	Black=1      Missed win:     	White=1     	---        Mistake:       	White=2     	Black=1      Inaccurate:     	White=2     	Black=4      OK:         	White=13    	Black=15     Best:        	White=3     	Black=4      Strong:       	White=1     	Black=2} 1/2-1/2

[Event "45th FIDE Olympiad 2024"]
[Site "Budapest"]
[Date "2024.09.16"]
[Round "6.145"]
[White "Susilodinata, Andrean"]
[Black "Sipila, Vilka"]
[Result "0-1"]
[WhiteElo "2393"]
[BlackElo "2462"]
[PlyCount "78"]
[EventDate "2024.09.05"]
[EventType "team-tourn"]
[EventCountry "HUN"]
[WhiteTeam "Indonesia"]
[BlackTeam "Finland"]
[WhiteTeamCountry "INA"]
[BlackTeamCountry "FIN"]
[TimeControl "40/5400+30:1800+30"]

1. e4 c5 2. Nf3 d6 3. d4 cxd4 4. Nxd4 Nf6 5. Nc3 a6 6. Be2 e5 7. Nb3 Be7 8. Be3 Be6 9. Nd5 Nbd7 10. Qd3 Bxd5 11. exd5 Rc8 12. c4 a5 13. a4 b6 14. O-O O-O 15. Nd2 Nc5 16. Qb1 Nfd7 17. Bg4 g6 18. b4 axb4 19. Bxd7 Qxd7 20. Qxb4 f5 21. Bxc5 bxc5 22. Qb5 Qa7 23. a5 Rb8 24. Qa4 Bg5 25. Nf3 Bf6 26. Nd2 e4 27. Ra3 Rb4 28. Qc6 Be5 29. g3 Qb8 30. Kg2 Rf7 31. Re1 Rc7 32. Qa6 Ra7 33. Qc6 Rb2 34. Rd1 Qb4 35. Ra4 Qc3 36. a6 e3 37. Nf3 Rxf2+ 38. Kh3 e2 39. Ng5 Rxh2+ {0-} 0-1

[Event "45th FIDE Olympiad 2024"]
[Site "Budapest"]
[Date "2024.09.16"]
[Round "6.146"]
[White "Agopov, Mikael"]
[Black "Cahaya, Satria Duta"]
[Result "0-1"]
[WhiteElo "2451"]
[BlackElo "2219"]
[PlyCount "92"]
[EventDate "2024.09.05"]
[EventType "team-tourn"]
[EventCountry "HUN"]
[WhiteTeam "Finland"]
[BlackTeam "Indonesia"]
[WhiteTeamCountry "FIN"]
[BlackTeamCountry "INA"]
[TimeControl "40/5400+30:1800+30"]

1. e4 c5 2. Nf3 g6 3. d4 cxd4 4. Nxd4 Nc6 5. c4 Nf6 6. Nc3 d6 7. f3 Bg7 8. Be3 a5 9. Ndb5 O-O 10. Be2 Be6 11. O-O Nd7 12. Rb1 Nc5 13. b3 f5 14. exf5 Bxf5 15. Rc1 a4 16. Nd5 axb3 17. axb3 Ra2 18. b4 Nb3 19. Qxb3 Rxe2 20. Nbc3 Nd4 21. Qd1 Rc2 22. Rxc2 Bxc2 23. Qd2 e5 24. Nb5 Nxb5 25. Qxc2 Nd4 26. Qe4 Qa8 27. Bxd4 exd4 28. Re1 Qa2 29. Qd3 Kh8 30. g3 b5 31. Nb6 Qa7 32. c5 dxc5 33. bxc5 b4 34. Kg2 Qa5 35. Nd7 b3 36. Rb1 Rd8 37. c6 Qa2+ 38. Kh1 Re8 39. Qxb3 Re1+ 40. Rxe1 Qxb3 41. c7 Qc4 42. Nc5 Qg8 43. Rb1 Be5 44. Rb8 Bxc7 45. Rxg8+ Kxg8 46. Ne6 d3 {0-} 0-1

[Event "45th FIDE Olympiad 2024"]
[Site "Budapest"]
[Date "2024.09.16"]
[Round "6.147"]
[White "Ulhaq, Zacky Dhia"]
[Black "Lahdelma, Henri"]
[Result "1/2-1/2"]
[WhiteElo "2203"]
[BlackElo "2331"]
[PlyCount "98"]
[EventDate "2024.09.05"]
[EventType "team-tourn"]
[EventCountry "HUN"]
[WhiteTeam "Indonesia"]
[BlackTeam "Finland"]
[WhiteTeamCountry "INA"]
[BlackTeamCountry "FIN"]
[TimeControl "40/5400+30:1800+30"]

1. d4 d5 2. c4 dxc4 3. e3 e5 4. Bxc4 exd4 5. exd4 Bd6 6. Nf3 Nf6 7. Qe2+ Qe7 8. Qxe7+ Bxe7 9. O-O O-O 10. Nc3 Nbd7 11. Re1 Bd6 12. Nb5 Nb6 13. Nxd6 cxd6 14. Bd3 Nfd5 15. Bd2 h6 16. Rac1 a5 17. a3 Be6 18. Nh4 Rfd8 19. Rc2 Nd7 20. h3 Nb8 21. Bf5 Bxf5 22. Nxf5 Nc6 23. Re4 h5 24. Bg5 Rd7 25. Rce2 f6 26. Bh4 g6 27. Ne3 Nxe3 28. R2xe3 g5 29. d5 Ne5 30. f4 gxh4 31. fxe5 dxe5 32. Rb3 Kf7 33. Rxh4 a4 34. Rbb4 Kg6 35. Rxa4 Rxa4 36. Rxa4 Rxd5 37. Rb4 b5 38. Kf2 Kg5 39. Ke3 f5 40. h4+ Kf6 41. a4 bxa4 42. Rxa4 Rd6 43. Rb4 Ke6 44. g3 Rc6 45. Rb8 Rc2 46. Re8+ Kf6 47. Rf8+ Ke6 48. Re8+ Kf6 49. Rf8+ Ke6 1/2-1/2

[Event "45th FIDE Olympiad 2024"]
[Site "Budapest"]
[Date "2024.09.16"]
[Round "6.148"]
[White "Wartiovaara, Oliver"]
[Black "Mariano, Fabian Glen"]
[Result "1-0"]
[WhiteElo "2300"]
[BlackElo "2121"]
[PlyCount "107"]
[EventDate "2024.09.05"]
[EventType "team-tourn"]
[EventCountry "HUN"]
[WhiteTeam "Finland"]
[BlackTeam "Indonesia"]
[WhiteTeamCountry "FIN"]
[BlackTeamCountry "INA"]
[TimeControl "40/5400+30:1800+30"]

1. e4 e5 2. Nf3 Nc6 3. Bb5 a6 4. Ba4 Nf6 5. O-O b5 6. Bb3 Bc5 7. Nc3 d6 8. Nd5 h6 9. c3 Ba7 10. Nxf6+ Qxf6 11. Bd5 Bd7 12. a4 O-O 13. d4 Bb6 14. Be3 Rab8 15. Bxc6 Bxc6 16. a5 exd4 17. cxd4 Ba7 18. Qc2 Bb7 19. Qxc7 Rfc8 20. Qd7 Qe6 21. Qxe6 fxe6 22. e5 Bxf3 23. gxf3 dxe5 24. dxe5 Bxe3 25. fxe3 Rc5 26. f4 Rbc8 27. Rad1 Rc2 28. Rf2 Rxf2 29. Kxf2 Rc2+ 30. Kg3 Rxb2 31. Rd6 Kf7 32. Rxa6 Re2 33. Ra7+ Kf8 34. Rb7 Rxe3+ 35. Kg4 Ra3 36. Rxb5 Kf7 37. h4 Ra4 38. Rb7+ Kf8 39. Ra7 Ra3 40. h5 Kg8 41. a6 Kf8 42. Ra8+ Kf7 43. a7 Ra4 44. Kf3 Ra3+ 45. Ke2 Ra2+ 46. Kd3 Ra3+ 47. Kc4 Ra4+ 48. Kb5 Ra1 49. f5 exf5 50. e6+ Kxe6 51. Re8+ Kf6 52. a8=Q Rxa8 53. Rxa8 Kg5 54. Rg8 1-0

[Event "45th FIDE Olympiad 2024"]
[Site "Budapest"]
[Date "2024.09.16"]
[Round "6.149"]
[White "Maksimovic, Bojan"]
[Black "Sanchez Alvarez, Roberto Carlos"]
[Result "1-0"]
[WhiteElo "2503"]
[BlackElo "2376"]
[PlyCount "45"]
[EventDate "2024.09.05"]
[EventType "team-tourn"]
[EventCountry "HUN"]
[WhiteTeam "Bosnia & Herzegovina"]
[BlackTeam "Panama"]
[WhiteTeamCountry "BIH"]
[BlackTeamCountry "PAN"]
[TimeControl "40/5400+30:1800+30"]

1. d4 d5 2. Nf3 Nf6 3. c4 e6 4. e3 a6 5. Nbd2 b6 6. b3 Bb7 7. Bb2 Nbd7 8. Bd3 Be7 9. O-O O-O 10. Qe2 c5 11. Rad1 Qc7 12. cxd5 Nxd5 13. Rc1 Qb8 14. Nc4 Qa7 15. Nfe5 Nxe5 16. dxe5 Rad8 17. Nd6 Bxd6 18. exd6 Rxd6 19. Bxh7+ Kxh7 20. Qh5+ Kg8 21. Bxg7 Kxg7 22. Qg5+ Kh8 23. Rc4 1-0

[Event "45th FIDE Olympiad 2024"]
[Site "Budapest"]
[Date "2024.09.16"]
[Round "6.150"]
[White "Delgado Rosas, Alex Antonio"]
[Black "Stojanovic, Dalibor"]
[Result "0-1"]
[WhiteElo "2157"]
[BlackElo "2448"]
[PlyCount "142"]
[EventDate "2024.09.05"]
[EventType "team-tourn"]
[EventCountry "HUN"]
[WhiteTeam "Panama"]
[BlackTeam "Bosnia & Herzegovina"]
[WhiteTeamCountry "PAN"]
[BlackTeamCountry "BIH"]
[TimeControl "40/5400+30:1800+30"]

1. d4 Nf6 2. Bf4 d6 3. Nc3 Nbd7 4. Nf3 Nh5 5. Bc1 e5 6. e4 Nhf6 7. Bc4 h6 8. O-O Be7 9. dxe5 dxe5 10. Qe2 c6 11. a4 O-O 12. Rd1 Qc7 13. Nh4 Nb6 14. Bb3 a5 15. Ng6 Re8 16. Nxe7+ Qxe7 17. Be3 Nbd7 18. f3 Nc5 19. Qf2 Nxb3 20. cxb3 Qe6 21. Rd3 Nd7 22. Rad1 f6 23. Ne2 h5 24. Qh4 Qf7 25. g4 hxg4 26. Ng3 gxf3 27. Kf2 Nf8 28. Nh5 Ng6 29. Qg3 Nf4 30. Nxf4 exf4 31. Qxf4 Be6 32. Rd6 Qh5 33. h4 Bf7 34. Rg1 Bg6 35. Rd7 Rxe4 36. Rxg7+ Kxg7 37. Qxe4 Rf8 38. Bd4 Rf7 39. Qf4 Kh7 40. Bc3 Qc5+ 41. Qe3 Qd6 42. Qxf3 Re7 43. Re1 Qh2+ 44. Qg2 Qxh4+ 45. Qg3 Qxg3+ 46. Kxg3 Rf7 47. Rf1 Kg7 48. Bxa5 Bc2 49. Rf3 Kg6 50. Kf4 Re7 51. Rg3+ Kf7 52. Re3 Rxe3 53. Kxe3 Bxb3 54. Kf4 Ke6 55. Bc3 Bxa4 56. Bd4 Bb3 57. Bc3 f5 58. Bg7 c5 59. Bf8 b6 60. Bg7 Bc2 61. Ke3 Kd5 62. Bf6 Kc4 63. Be5 Kb3 64. Kd2 Be4 65. Kc1 b5 66. Kd2 b4 67. Kc1 c4 68. Kd2 Ka2 69. Ke3 c3 70. bxc3 b3 71. c4 Bb7 {0-} 0-1